lending/lending_fUSD_20260317
["ID","MTS","AMOUNT","RATE_DAILY","PERIOD"]
[408481751,1773730232558,-1500.0,0.000138,5]
[408481753,1773730232567,-2300.0,0.000139,5]
[408481754,1773730232577,-500.0,0.000139,5]
[408481755,1773730232586,-964.03392799,0.00013959,2]
[408481756,1773730232596,-420.0,0.00013967,2]
[408481757,1773730232605,-4494.27065536,0.00014017,2]
[408481758,1773730232625,-5276.66393612,0.00014017,2]
[408481759,1773730232636,-151.44052149,0.00014041,2]
[408481760,1773730232645,-500.0,0.0001405,2]
[408481761,1773730232654,-479.05484375,0.0001405,2]
[408481762,1773730232664,-308.1053543,0.0001405,2]
[408481763,1773730232673,-500.0,0.0001405,2]
[408481764,1773730232683,-580.10556426,0.0001405,2]
[408481765,1773730232692,-500.0,0.0001405,2]
[408481766,1773730232701,-500.0,0.0001405,2]
[408481767,1773730232710,-500.0,0.0001405,2]
[408481768,1773730232719,-500.0,0.0001405,2]
[408481769,1773730232729,-500.0,0.0001405,2]
[408481770,1773730232739,-500.0,0.0001405,2]
[408481771,1773730232761,-500.0,0.0001405,2]
[408481772,1773730232779,-500.0,0.0001405,2]
[408481773,1773730232789,-500.0,0.0001405,2]
[408481774,1773730232798,-500.0,0.0001405,2]
[408481775,1773730232807,-500.0,0.0001405,2]
[408481776,1773730232817,-500.0,0.0001405,2]
[408481777,1773730232826,-500.0,0.0001405,2]
[408481778,1773730232835,-500.0,0.0001405,2]
[408481779,1773730232844,-500.0,0.0001405,2]
[408481780,1773730232854,-500.0,0.0001405,2]
[408481781,1773730232863,-500.0,0.0001405,2]
[408481782,1773730232872,-500.0,0.0001405,2]
[408481783,1773730232882,-500.0,0.0001405,2]
[408481784,1773730232891,-500.0,0.0001405,2]
[408481785,1773730232901,-500.0,0.0001405,2]
[408481786,1773730232910,-500.0,0.0001405,2]
[408481787,1773730232920,-500.0,0.0001405,2]
[408481788,1773730232931,-500.0,0.0001405,2]
[408481789,1773730232941,-500.0,0.0001405,2]
[408481790,1773730232951,-500.0,0.0001405,2]
[408481791,1773730232960,-500.0,0.0001405,2]
[408481792,1773730232969,-500.0,0.0001405,2]
[408481793,1773730232979,-500.0,0.0001405,2]
[408481794,1773730232988,-500.0,0.0001405,2]
[408481795,1773730232998,-500.0,0.0001405,2]
[408481796,1773730233007,-500.0,0.0001405,2]
[408481797,1773730233016,-500.0,0.0001405,2]
[408481798,1773730233027,-500.0,0.0001405,2]
[408481799,1773730233036,-500.0,0.0001405,2]
[408481800,1773730233046,-500.0,0.0001405,2]
[408481801,1773730233055,-322.81759012,0.0001405,2]
[408481802,1773730233064,-500.0,0.0001405,2]
[408481803,1773730233076,-500.0,0.0001405,2]
[408481804,1773730233085,-500.0,0.0001405,2]
[408481805,1773730233094,-500.0,0.0001405,2]
[408481806,1773730233104,-500.0,0.0001405,2]
[408481807,1773730233113,-500.0,0.0001405,2]
[408481808,1773730233123,-500.0,0.0001405,2]
[408481809,1773730233133,-250.0,0.0001405,2]
[408481810,1773730233142,-33212.64627046,0.00014051,2]
[408481811,1773730233156,-31195.36342048,0.00014051,2]
[408481812,1773730233167,-40751.67175912,0.00014051,2]
[408481813,1773730233178,-15318.00045264,0.00014051,2]
[408481814,1773730233211,-1008.75000001,0.00014051,2]
[408481815,1773730238109,-78647.15119493,0.00014051,2]
[408481816,1773730238224,-75571.14173838,0.00014051,2]
[408481817,1773730238339,-317.0,0.00014051,2]
[408481820,1773730240335,-36132.87203757,0.00014051,2]
[408481826,1773730246141,-383.48188382,0.00014017,2]
[408481827,1773730246150,-118.74248404,0.00014051,2]
[408481828,1773730246261,-12004.09949876,0.00014051,2]
[408481829,1773730246438,-719.249995,0.00014051,2]
[408481830,1773730246450,-966.59,0.00014051,2]
[408481838,1773730474825,328.416,0.00016333,120]
[408481841,1773731136627,-773.04,0.00011507,2]
[408481842,1773731136652,-300.0,0.00011989,2]
[408481843,1773731136678,-1200.0,0.00011989,2]
[408481844,1773731136702,-7408.62585537,0.0001199,2]
[408481845,1773731136726,-248.0,0.0001199,2]
[408481853,1773731432199,-438.09910747,0.00012744,2]
[408481855,1773731432211,-532.82685681,0.00012744,2]
[408481857,1773731432268,-4932.79258672,0.00012744,2]
[408481858,1773731432278,-32966.233,0.00012745,2]
[408481859,1773731432288,-300.0,0.00012807,2]
[408481860,1773731432297,-1200.0,0.00012807,2]
[408481861,1773731432307,-86649.4,0.00012808,2]
[408481862,1773731432317,-7591.85099814,0.00012844,2]
[408481863,1773731432326,-150.0,0.00012844,2]
[408481864,1773731432335,-34319.81899194,0.00012845,2]
[408481865,1773731432346,-41851.71356463,0.00012845,2]
[408481866,1773731432362,-2303.22682107,0.00012845,2]
[408481872,1773731438270,-38780.06034275,0.00012845,2]
[408481873,1773731438448,-684.4345263,0.00012845,2]
[408481874,1773731438459,-917.47810131,0.00012845,2]
[408481875,1773731438471,-860.85068214,0.00012845,2]
[408481876,1773731438569,-1757.91409875,0.00012845,2]
[408481891,1773731444006,-65826.73577111,0.00012845,2]
[408481892,1773731444016,-500.0,0.00012873,2]
[408481893,1773731444026,-307.67783759,0.00012873,2]
[408481894,1773731444038,-500.0,0.00012873,2]
[408481895,1773731444049,-4337.37502819,0.00012892,2]
[408481896,1773731444060,-47400.68,0.00012945,2]
[408481897,1773731444071,-488.74,0.00012991,2]
[408481898,1773731444080,-1500.0,0.00013017,2]
[408481899,1773731444090,-4765.81,0.00013071,2]
[408481900,1773731444100,-150.0,0.00013212,2]
[408481901,1773731444109,-154.24,0.00013238,2]
[408481902,1773731444120,-518.0,0.00013333,2]
[408481903,1773731444131,-1000.0,0.00013421,2]
[408481904,1773731444140,-1000.0,0.00013421,2]
[408481905,1773731444149,-200.0,0.00013479,2]
[408481906,1773731444158,-153.0,0.00013571,2]
[408481907,1773731444167,-7591.85099805,0.00013628,2]
[408481908,1773731444176,-4337.37502815,0.00013671,2]
[408481910,1773731444186,-523.0,0.00013724,2]
[408481912,1773731444198,-523.0,0.00013724,2]
[408481913,1773731444207,-523.0,0.00013724,2]
[408481914,1773731444216,-523.0,0.00013724,2]
[408481915,1773731444225,-523.0,0.00013724,2]
[408481916,1773731444235,-523.0,0.00013724,2]
[408481917,1773731444244,-523.0,0.00013724,2]
[408481918,1773731444254,-523.0,0.00013724,2]
[408481919,1773731444263,-523.0,0.00013724,2]
[408481920,1773731444273,-523.0,0.00013724,2]
[408481921,1773731444282,-523.0,0.00013724,2]
[408481922,1773731444291,-523.0,0.00013724,2]
[408481923,1773731444300,-523.0,0.00013724,2]
[408481924,1773731444309,-523.0,0.00013724,2]
[408481925,1773731444319,-523.0,0.00013724,2]
[408481926,1773731444328,-523.0,0.00013724,2]
[408481927,1773731444337,-523.0,0.00013724,2]
[408481928,1773731444347,-523.0,0.00013724,2]
[408481929,1773731444355,-523.0,0.00013724,2]
[408481930,1773731444364,-523.0,0.00013724,2]
[408481931,1773731444373,-523.0,0.00013724,2]
[408481932,1773731444382,-523.0,0.00013724,2]
[408481933,1773731444391,-523.0,0.00013724,2]
[408481934,1773731444400,-539.1060574,0.00013724,2]
[408481935,1773731444409,-1980.28193117,0.00013764,2]
[408481936,1773731444419,-175.0,0.0001378,2]
[408481937,1773731444428,-500.0,0.00013797,2]
[408481938,1773731444438,-2160.3442264,0.00013851,2]
[408481939,1773731444451,-15403.75053605,0.00013851,2]
[408481943,1773731446158,-3629.98681558,0.00013851,2]
[408481944,1773731446559,-9417.94241866,0.00013851,2]
[408481950,1773731446678,-620.335002,0.00013851,2]
[408481951,1773731446689,-316.1305,0.00013851,2]
[408481952,1773731446700,-2538.6899155,0.00013851,2]
[408481953,1773731446712,-1434.0585,0.00013851,2]
[408481954,1773731446724,-715.2085,0.00013851,2]
[408481955,1773731446736,-1056.1642,0.00013851,2]
[408481956,1773731446747,-1298.97054013,0.00013851,2]
[408481973,1773731698940,-166.66,0.0001233,2]
[408481974,1773731698971,-166.66,0.00012589,2]
[408481975,1773731698999,-160.6429396,0.00012645,2]
[408481976,1773731699024,-20522.8193,0.00012745,2]
[408481977,1773731699053,-1173.2177604,0.00012745,2]
[408482039,1773732457640,173.77,6.006e-05,2]
[408482091,1773732631381,-388.019697,0.00012168,2]
[408482092,1773732631404,-354.272103,0.00012168,2]
[408482093,1773732631414,-250.0,0.00012229,2]
[408482094,1773732631423,-72.997897,0.00012229,2]
[408482096,1773732631435,-177.002103,0.00012229,2]
[408482098,1773732631445,-300.0,0.00012229,2]
[408482100,1773732631454,-300.0,0.00012229,14]
[408482102,1773732631464,-1556.31889126,0.0001226,2]
[408482104,1773732631483,-4539.11110874,0.0001226,2]
[408482105,1773732631492,-250.0,0.00012305,2]
[408482106,1773732631502,-1200.0,0.00012381,2]
[408482107,1773732631511,-1200.0,0.00012382,2]
[408482108,1773732631520,-300.0,0.00012383,2]
[408482109,1773732631530,-300.0,0.00012383,2]
[408482110,1773732631540,-300.0,0.00012383,2]
[408482111,1773732631549,-150.0,0.00012385,2]
[408482112,1773732631558,-87814.31,0.00012386,2]
[408482113,1773732631567,-5749.39,0.00012395,2]
[408482114,1773732631576,-5110.6,0.00012419,2]
[408482115,1773732631585,-11185.05835112,0.0001247,2]
[408482116,1773732631595,-150.0,0.00012524,2]
[408482117,1773732631604,-700.0,0.000126,4]
[408482119,1773732631613,-500.0,0.00012644,2]
[408482120,1773732631623,-172.86198625,0.00012644,2]
[408482121,1773732631632,-186.10270378,0.00012645,2]
[408482122,1773732631642,-1400.0,0.000127,4]
[408482123,1773732631652,-192.0,0.00012719,2]
[408482124,1773732631661,-169.0,0.00012745,3]
[408482125,1773732631670,-2100.0,0.000128,4]
[408482126,1773732631680,-265.0,0.00012827,2]
[408482127,1773732631689,-166.66,0.00012849,2]
[408482128,1773732631699,-2103.90171467,0.000129,4]
[408482129,1773732631710,-696.09828533,0.000129,4]
[408482130,1773732631720,-2000.0,0.00012979,2]
[408482131,1773732631729,-218.0,0.00013042,2]
[408482132,1773732631739,-242.74,0.00013061,2]
[408482133,1773732631748,-166.66,0.00013109,2]
[408482134,1773732631758,-12115.80008079,0.00013276,2]
[408482135,1773732631767,-3447.43818443,0.00013276,2]
[408482136,1773732631777,-7136.99612952,0.00013276,2]
[408482137,1773732631786,-409.04734274,0.00013276,2]
[408482138,1773732631796,-582.91999285,0.00013276,2]
[408482139,1773732631805,-421.0,0.00013279,2]
[408482140,1773732631815,-181.0,0.00013279,2]
[408482141,1773732631824,-530.0,0.00013333,2]
[408482142,1773732631833,-197.24810245,0.00013364,2]
[408482143,1773732631844,-176.68060841,0.00013366,2]
[408482144,1773732631853,-606.76803504,0.00013368,2]
[408482145,1773732631863,-151.0,0.00013368,2]
[408482146,1773732631872,-151.0,0.00013368,2]
[408482147,1773732631882,-200.0,0.00013368,2]
[408482148,1773732631891,-151.0,0.00013368,2]
[408482149,1773732632054,-151.0,0.00013368,2]
[408482150,1773732632064,-151.0,0.00013368,2]
[408482151,1773732632073,-151.0,0.00013368,2]
[408482152,1773732632082,-151.0,0.00013368,2]
[408482153,1773732632091,-151.0,0.00013368,2]
[408482154,1773732632100,-151.0,0.00013368,2]
[408482155,1773732632109,-151.0,0.00013368,2]
[408482156,1773732632119,-151.0,0.00013368,2]
[408482157,1773732632128,-151.0,0.00013368,2]
[408482158,1773732632137,-151.0,0.00013368,2]
[408482159,1773732632147,-151.0,0.00013368,2]
[408482160,1773732632156,-151.0,0.00013368,2]
[408482161,1773732632165,-151.0,0.00013368,2]
[408482162,1773732632175,-151.0,0.00013368,2]
[408482163,1773732632184,-151.0,0.00013368,2]
[408482164,1773732632193,-151.0,0.00013368,2]
[408482165,1773732632202,-151.0,0.00013368,2]
[408482166,1773732632211,-151.0,0.00013368,2]
[408482167,1773732632220,-151.0,0.00013368,2]
[408482168,1773732632229,-151.0,0.00013368,2]
[408482169,1773732632239,-151.0,0.00013368,2]
[408482170,1773732632249,-151.0,0.00013368,2]
[408482171,1773732632258,-151.0,0.00013368,2]
[408482172,1773732632267,-151.0,0.00013368,2]
[408482173,1773732632276,-151.0,0.00013368,2]
[408482174,1773732632285,-151.0,0.00013368,2]
[408482175,1773732632294,-151.0,0.00013368,2]
[408482176,1773732632304,-151.0,0.00013368,2]
[408482177,1773732632313,-151.0,0.00013368,2]
[408482178,1773732632322,-151.0,0.00013368,2]
[408482179,1773732632331,-166.66,0.00013368,2]
[408482180,1773732632341,-500.0,0.00013373,2]
[408482181,1773732632350,-167.29803993,0.00013373,2]
[408482182,1773732632359,-502.09965026,0.00013373,2]
[408482183,1773732632368,-230.56038975,0.00013373,2]
[408482184,1773732632378,-500.4240839,0.00013373,2]
[408482185,1773732632387,-500.0,0.00013373,2]
[408482186,1773732632396,-500.0,0.00013373,2]
[408482187,1773732632405,-500.0,0.00013373,2]
[408482188,1773732632414,-2500.0,0.00013373,2]
[408482189,1773732632424,-500.0,0.00013375,2]
[408482190,1773732632434,-500.0,0.00013375,2]
[408482191,1773732632443,-261.43432938,0.00013375,2]
[408482192,1773732632452,-247.1807813,0.00013375,2]
[408482193,1773732632462,-500.0,0.00013375,2]
[408482194,1773732632471,-438.88460671,0.00013375,2]
[408482195,1773732632481,-183.00403057,0.00013375,2]
[408482196,1773732632491,-500.0,0.00013375,2]
[408482197,1773732632501,-373.02654691,0.00013375,2]
[408482198,1773732632511,-6759.8903,0.00013376,2]
[408482199,1773732632521,-7778.94424239,0.00013376,2]
[408482200,1773732632533,-50771.5730427,0.00013376,2]
[408482201,1773732632544,-18468.94024725,0.00013376,2]
[408482202,1773732632565,-950.8517465,0.00013376,2]
[408482203,1773732632578,-250.0,0.00013376,2]
[408482204,1773732632591,-510.61,0.00013376,2]
[408482210,1773732637401,-3719.55,0.00013376,2]
[408482211,1773732637566,-1100.0,0.00013376,2]
[408482212,1773732637656,-7430.16671124,0.00013376,2]
[408482213,1773732637668,-21635.50080864,0.00013376,2]
[408482214,1773732637687,-1438.45657194,0.00013376,2]
[408482230,1773732640075,-596.298,0.00013376,2]
[408482237,1773732645242,-1059.54239649,0.00013376,2]
[408482238,1773732645262,-743.32,0.00013376,2]
[408482239,1773732645355,-1383.06069021,0.00013376,2]
[408482251,1773732645643,-933.16741673,0.00013376,2]
[408482253,1773732645660,-7438.07604185,0.00013376,2]
[408482256,1773732645671,-275821.67074434,0.00013376,2]
[408482258,1773732645683,-1689.66490424,0.00013376,2]
[408482260,1773732645694,-1159.86539298,0.00013376,2]
[408482262,1773732645705,-686.11417984,0.00013376,2]
[408482283,1773732670233,10000.0,0.00012,2]
[408482284,1773732992630,202.99016,0.00012383,2]
[408482285,1773733746300,5533.0,0.000104,5]
[408482286,1773733746513,5533.0,0.000102,3]
[408482287,1773733746735,26855.0,0.0001,2]
[408482296,1773733831657,-186.10270378,0.00012215,2]
[408482297,1773733831667,-300.0,0.00012314,2]
[408482298,1773733831676,-300.0,0.00012314,2]
[408482299,1773733831686,-1200.0,0.00012314,2]
[408482300,1773733831695,-1600.0,0.00012315,2]
[408482301,1773733831704,-153.98,0.00012315,2]
[408482302,1773733831714,-1500.0,0.00012315,2]
[408482303,1773733831724,-3866.62,0.00012315,2]
[408482304,1773733831734,-5322.56984,0.00012383,2]
[408482305,1773733831743,-200.0,0.00012391,2]
[408482306,1773733831753,-153.0,0.000124,2]
[408482307,1773733831762,-500.0,0.00012409,2]
[408482308,1773733831771,-177.07,0.00012409,2]
[408482309,1773733831781,-241.205,0.00012479,2]
[408482310,1773733831791,-325.0,0.000125,2]
[408482311,1773733831801,-19456.05,0.00012579,2]
[408482312,1773733831810,-458.0,0.000126,2]
[408482314,1773733831819,-166.81,0.00012685,2]
[408482315,1773733831828,-713.0,0.00012757,2]
[408482317,1773733831838,-1209.0,0.00012776,2]
[408482319,1773733831856,-1037.0,0.00012783,2]
[408482320,1773733831876,-233.0,0.00012788,2]
[408482321,1773733831889,-358.18864893,0.00012793,2]
[408482322,1773733831899,-400.0,0.000128,4]
[408482323,1773733831910,-699.0,0.00012861,2]
[408482324,1773733831921,-286.0,0.00012886,2]
[408482325,1773733831930,-150.0,0.00012892,2]
[408482326,1773733831940,-150.99,0.00012893,2]
[408482327,1773733831951,-545.11,0.00012893,2]
[408482328,1773733831961,-15999.52,0.00012893,2]
[408482329,1773733831970,-499.99,0.00012893,2]
[408482330,1773733831980,-1405.79874059,0.00012893,2]
[408482331,1773733831993,-8594.19125941,0.00012893,2]
[408482332,1773733832003,-9877.21,0.00012893,2]
[408482333,1773733832013,-319.38,0.00012893,2]
[408482334,1773733832022,-18712.56895787,0.00012893,2]
[408482335,1773733832036,-9293.01104213,0.00012893,2]
[408482336,1773733832046,-9999.99,0.00012893,2]
[408482337,1773733832055,-299.99,0.00012893,2]
[408482338,1773733832065,-5361.6,0.00012893,2]
[408482339,1773733832074,-699.54,0.00012893,2]
[408482340,1773733832084,-1478.39,0.00012893,2]
[408482341,1773733832093,-1431.36325577,0.00012893,2]
[408482348,1773733837777,-4938.94304721,0.00012893,2]
[408482349,1773733837812,-3629.68369702,0.00012893,2]
[408482350,1773733837823,-9999.99,0.00012893,2]
[408482351,1773733837832,-800.0,0.000129,4]
[408482352,1773733837842,-786.74465,0.000129,2]
[408482353,1773733837852,-168.0,0.00012952,2]
[408482354,1773733837862,-12011.93416826,0.00012953,2]
[408482355,1773733837871,-241.63,0.00012997,2]
[408482356,1773733837880,-7426.23778384,0.0001305,2]
[408482357,1773733837890,-500.0,0.00013053,2]
[408482358,1773733837899,-168.0,0.00013053,2]
[408482359,1773733837909,-999.99,0.00013053,2]
[408482360,1773733837918,-62151.18,0.00013053,2]
[408482361,1773733837927,-3430.85,0.00013053,2]
[408482362,1773733837937,-150.99,0.00013053,2]
[408482363,1773733837947,-1500.0,0.000131,2]
[408482364,1773733837956,-169.646,0.0001314,2]
[408482365,1773733837965,-4168.936,0.0001314,2]
[408482366,1773733837975,-185.44,0.00013141,2]
[408482367,1773733837984,-578.78721988,0.00013147,2]
[408482368,1773733837994,-578.78721988,0.00013147,2]
[408482369,1773733838003,-578.78721988,0.00013147,2]
[408482370,1773733838012,-578.78721988,0.00013147,2]
[408482371,1773733838022,-578.78721988,0.00013147,2]
[408482372,1773733838031,-578.78721988,0.00013147,2]
[408482373,1773733838040,-578.78721988,0.00013147,2]
[408482374,1773733838050,-578.78721988,0.00013147,2]
[408482375,1773733838059,-578.78721988,0.00013147,2]
[408482376,1773733838068,-578.78721988,0.00013147,2]
[408482377,1773733838078,-578.78721988,0.00013147,2]
[408482378,1773733838087,-578.78721988,0.00013147,2]
[408482380,1773733838097,-578.78721988,0.00013147,2]
[408482382,1773733838106,-578.78721988,0.00013147,2]
[408482384,1773733838115,-578.78721988,0.00013147,2]
[408482386,1773733838124,-578.78721988,0.00013147,2]
[408482388,1773733838133,-578.78721988,0.00013147,2]
[408482390,1773733838143,-578.78721988,0.00013147,2]
[408482392,1773733838153,-578.78721988,0.00013147,2]
[408482394,1773733838162,-578.78721988,0.00013147,2]
[408482396,1773733838171,-578.78721988,0.00013147,2]
[408482398,1773733838180,-578.78721988,0.00013147,2]
[408482400,1773733838190,-578.78721988,0.00013147,2]
[408482402,1773733838199,-578.78721988,0.00013147,2]
[408482404,1773733838208,-578.78721988,0.00013147,2]
[408482406,1773733838217,-578.78721988,0.00013147,2]
[408482408,1773733838226,-578.78721988,0.00013147,2]
[408482410,1773733838239,-578.78721988,0.00013147,2]
[408482412,1773733838248,-578.78721988,0.00013147,2]
[408482414,1773733838258,-578.78721988,0.00013147,2]
[408482416,1773733838268,-578.78721988,0.00013147,2]
[408482418,1773733838279,-578.78721988,0.00013147,2]
[408482420,1773733838288,-578.78721988,0.00013147,2]
[408482422,1773733838297,-578.78721988,0.00013147,2]
[408482424,1773733838308,-578.78721988,0.00013147,2]
[408482426,1773733838318,-578.78721988,0.00013147,2]
[408482428,1773733838328,-578.78721988,0.00013147,2]
[408482430,1773733838337,-578.78721988,0.00013147,2]
[408482431,1773733838347,-578.78721988,0.00013147,2]
[408482432,1773733838355,-578.78721988,0.00013147,2]
[408482433,1773733838364,-578.78721988,0.00013147,2]
[408482434,1773733838373,-578.78721988,0.00013147,2]
[408482435,1773733838383,-578.78721988,0.00013147,2]
[408482436,1773733838392,-578.78721988,0.00013147,2]
[408482437,1773733838402,-151.0,0.00013149,2]
[408482438,1773733838414,-470.300582,0.00013149,2]
[408482439,1773733838423,-470.300582,0.00013149,2]
[408482440,1773733838432,-470.300582,0.00013149,2]
[408482441,1773733838442,-470.300582,0.00013149,2]
[408482442,1773733838452,-4142.8479,0.00013149,2]
[408482443,1773733838462,-75448.0126,0.00013149,2]
[408482444,1773733838471,-470.300582,0.0001315,2]
[408482445,1773733838481,-470.300582,0.0001315,2]
[408482446,1773733838492,-470.300582,0.0001315,2]
[408482447,1773733838502,-470.300582,0.0001315,2]
[408482448,1773733838513,-9822.9737,0.0001315,2]
[408482449,1773733838523,-1000.0,0.0001315,2]
[408482450,1773733838532,-1417.6887,0.0001315,2]
[408482451,1773733838542,-500.0,0.00013173,2]
[408482452,1773733838551,-500.0,0.00013173,2]
[408482453,1773733838561,-505.34039603,0.00013173,2]
[408482454,1773733838571,-500.0,0.00013173,2]
[408482455,1773733838582,-6321.0,0.00013211,2]
[408482456,1773733838591,-151.0,0.00013242,2]
[408482457,1773733838601,-151.0,0.00013242,2]
[408482458,1773733838611,-151.0,0.00013242,2]
[408482459,1773733838621,-151.0,0.00013242,2]
[408482460,1773733838630,-151.0,0.00013242,2]
[408482461,1773733838640,-200.0,0.00013242,2]
[408482462,1773733838649,-151.0,0.00013242,2]
[408482463,1773733838659,-151.0,0.00013242,2]
[408482464,1773733838668,-151.0,0.00013242,2]
[408482465,1773733838678,-151.0,0.00013242,2]
[408482466,1773733838687,-151.0,0.00013242,2]
[408482467,1773733838698,-151.0,0.00013242,2]
[408482468,1773733838708,-151.0,0.00013242,2]
[408482469,1773733838718,-151.0,0.00013242,2]
[408482470,1773733838728,-151.0,0.00013242,2]
[408482471,1773733838738,-151.0,0.00013242,2]
[408482472,1773733838748,-151.0,0.00013242,2]
[408482473,1773733838757,-151.0,0.00013242,2]
[408482474,1773733838766,-298.95320248,0.00013242,2]
[408482475,1773733838775,-479.41,0.00013249,2]
[408482476,1773733838784,-211.90646268,0.00013249,2]
[408482477,1773733838793,-500.0,0.00013249,2]
[408482478,1773733838802,-500.0,0.00013249,2]
[408482479,1773733838812,-240.32019745,0.00013249,2]
[408482480,1773733838822,-307.2192247,0.00013249,2]
[408482481,1773733838832,-500.0,0.00013249,2]
[408482482,1773733838841,-114430.69330675,0.0001325,2]
[408482483,1773733838877,-748.26893567,0.0001325,2]
[408482484,1773733838908,-43954.86416046,0.0001325,2]
[408482485,1773733838920,-1185.97986445,0.0001325,2]
[408482493,1773733839908,-635.10899384,0.0001325,2]
[408482494,1773733840146,-684.80572184,0.0001325,2]
[408482495,1773733840158,-1000.0,0.0001325,2]
[408482496,1773733840379,-18501.0355484,0.0001325,2]
[408482505,1773733843087,-322.94797957,0.00013147,2]
[408482511,1773733845592,-150.0,0.00012315,2]
[408482512,1773733845603,-151.0,0.00013053,2]
[408482513,1773733845612,-74.16371793,0.00013147,2]
[408482514,1773733845623,-223.01746666,0.00013147,2]
[408482515,1773733845633,-620.12916416,0.00013147,2]
[408482516,1773733845642,-156.85336918,0.00013147,2]
[408482517,1773733845834,-411.05264913,0.00013147,2]
[408482518,1773733845971,-52.22314585,0.00013147,2]
[408482519,1773733845980,-620.12916416,0.00013147,2]
[408482520,1773733845990,-620.12916416,0.00013147,2]
[408482521,1773733845999,-620.12916416,0.00013147,2]
[408482522,1773733846008,-620.12916416,0.00013147,2]
[408482523,1773733846017,-374.5312828,0.00013147,2]
[408482524,1773733846029,-245.59788136,0.00013147,2]
[408482525,1773733846041,-620.12916416,0.00013147,2]
[408482526,1773733846051,-620.12916416,0.00013147,2]
[408482527,1773733846062,-620.12916416,0.00013147,2]
[408482528,1773733846071,-620.12916416,0.00013147,2]
[408482529,1773733846081,-620.12916416,0.00013147,2]
[408482530,1773733846090,-620.12916416,0.00013147,2]
[408482531,1773733846100,-620.12916416,0.00013147,2]
[408482532,1773733846109,-620.12916416,0.00013147,2]
[408482533,1773733846118,-620.12916416,0.00013147,2]
[408482534,1773733846127,-620.12916416,0.00013147,2]
[408482535,1773733846136,-620.12916416,0.00013147,2]
[408482536,1773733846145,-620.12916416,0.00013147,2]
[408482537,1773733846155,-620.12916416,0.00013147,2]
[408482538,1773733846166,-620.12916416,0.00013147,2]
[408482539,1773733846176,-620.12916416,0.00013147,2]
[408482540,1773733846186,-620.12916416,0.00013147,2]
[408482541,1773733846196,-620.12916416,0.00013147,2]
[408482542,1773733846206,-620.12916416,0.00013147,2]
[408482543,1773733846216,-620.12916416,0.00013147,2]
[408482544,1773733846227,-620.12916416,0.00013147,2]
[408482545,1773733846239,-620.12916416,0.00013147,2]
[408482546,1773733846249,-620.12916416,0.00013147,2]
[408482547,1773733846259,-620.12916416,0.00013147,2]
[408482548,1773733846270,-620.12916416,0.00013147,2]
[408482549,1773733846279,-620.12916416,0.00013147,2]
[408482550,1773733846289,-620.12916416,0.00013147,2]
[408482551,1773733846298,-620.12916416,0.00013147,2]
[408482552,1773733846310,-620.12916416,0.00013147,2]
[408482553,1773733846320,-620.12916416,0.00013147,2]
[408482554,1773733846330,-620.12916416,0.00013147,2]
[408482555,1773733846339,-620.12916416,0.00013147,2]
[408482556,1773733846350,-620.12916416,0.00013147,2]
[408482557,1773733846361,-620.12916416,0.00013147,2]
[408482558,1773733846370,-43043.4246119,0.0001325,2]
[408482559,1773733846380,-161.116037,0.0001325,2]
[408482560,1773733846391,-161.116037,0.0001325,2]
[408482561,1773733846400,-161.116037,0.0001325,2]
[408482562,1773733846410,-161.116037,0.0001325,2]
[408482563,1773733846423,-470.300582,0.0001325,2]
[408482564,1773733846434,-470.300582,0.0001325,2]
[408482565,1773733846443,-470.300582,0.0001325,2]